bitfinex-derivatives/quotes_SOLF0:USTF0_20241021
["timestamp","ask_amount","ask_price","bid_price","bid_amount"]
[1729490776051,2.9426,169.96,169.89,2.5726]
[1729490776052,4.42,169.99,169.92,1.47237401]
[1729490776256,4.42,169.99,169.89,2.5726]
[1729490776451,4.42,169.99,169.9,1.47237351]
[1729490776651,4.42,169.99,169.91,1.47237351]
[1729490776853,2.9424,169.97,169.92,4.41557351]
[1729490777051,2.9424,169.97,169.92,2.9432]
[1729490778249,22.13,169.99,169.85,4.42]
[1729490778456,2.9432,169.93,169.86,1.47255565]
[1729490778757,7.3632,169.93,169.87,1.47255565]
[1729490778954,4.42,169.93,169.89,2.9438]
[1729490779255,4.42,169.93,169.9,1.47253746]
[1729490779557,4.42,169.93,169.85,4.42]
[1729490779862,4.42,169.93,169.86,1.47252696]
[1729490780053,4.42,169.93,169.87,1.47252696]
[1729490780360,4.42,169.93,169.88,1.47252696]
[1729490780658,4.42,169.93,169.89,1.47252696]
[1729490780858,4.42,169.93,169.9,4.41602696]
[1729490781157,4.42,169.93,169.9,2.9435]
[1729490782053,4.4,169.95,169.9,2.9435]
[1729490785061,7.3429,169.95,169.89,2.9436]
[1729490785262,7.3429,169.95,169.9,1.47249067]
[1729490785463,7.3429,169.95,169.89,2.9436]
[1729490785952,7.3429,169.95,169.9,1.47248906]
[1729490786157,7.3429,169.95,169.89,2.9436]
[1729490786361,7.3429,169.95,169.9,1.47249589]
[1729490786561,4.4,169.95,169.9,2.9434]
[1729490787669,7.3428,169.95,169.9,2.9434]
[1729490788070,5.3841,169.96,169.91,2.9434]
[1729490788369,9.7841,169.96,169.91,2.9434]
[1729490789266,9.7841,169.96,169.92,1.47247184]
[1729490789467,9.7841,169.96,169.91,2.9434]
[1729490789661,9.7841,169.96,169.92,1.47240341]
[1729490789968,9.7841,169.96,169.91,2.9434]
[1729490790171,2.9428,169.95,169.92,1.47240341]
[1729490790470,6.8415,169.96,169.85,4.42]
[1729490790676,6.8415,169.96,169.86,1.47245564]
[1729490790875,6.8415,169.96,169.87,1.47245564]
[1729490791170,9.7841,169.96,169.91,2.9433]
[1729490792276,9.7841,169.96,169.92,1.4724366]
[1729490792475,9.7841,169.96,169.91,2.9433]
[1729490792975,9.7841,169.96,169.92,1.47243609]
[1729490793180,9.7841,169.96,169.91,2.9433]
[1729490793573,9.7841,169.96,169.92,1.47242818]
[1729490793879,9.7841,169.96,169.91,2.9433]
[1729490794083,9.7841,169.96,169.92,1.47241695]
[1729490794376,9.7841,169.96,169.91,2.9433]
[1729490794576,2.9427,169.95,169.92,1.47242378]
[1729490794879,2.9427,169.95,169.85,4.42]
[1729490795177,2.9427,169.95,169.86,1.47241855]
[1729490795382,2.9427,169.95,169.87,1.47241855]
[1729490795578,9.7841,169.96,169.91,2.9434]
[1729490795773,9.7841,169.96,169.92,1.47241855]
[1729490795978,9.7841,169.96,169.91,2.9434]
[1729490796278,9.7841,169.96,169.92,1.47241855]
[1729490796473,9.7841,169.96,169.91,2.9434]
[1729490796669,9.7841,169.96,169.92,1.47241695]
[1729490796871,9.7841,169.96,169.91,2.9434]
[1729490797072,4.4,169.96,169.93,2.943]
[1729490797380,8.6375,169.98,169.93,2.943]
[1729490797880,2.9424,169.97,169.93,2.943]
[1729490799070,4.4,170.0,169.94,2.9428]
[1729490799374,7.3418,170.01,169.95,1.47229522]
[1729490799574,7.3418,170.01,169.91,4.4]
[1729490799770,7.3418,170.01,169.92,1.47217402]
[1729490799970,7.3418,170.01,169.93,1.47217402]
[1729490800171,7.3418,170.01,169.91,4.4]
[1729490800172,7.3418,170.01,169.96,2.9424]
[1729490806073,4.4,170.03,169.97,1.47199283]
[1729490806277,4.4,170.03,169.91,7.29345673]
[1729490806580,4.4,170.03,169.92,1.4719979]
[1729490806777,4.4,170.03,169.93,1.4719979]
[1729490806973,4.4,170.03,169.99,2.942]
[1729490807580,7.3415,170.03,169.98,2.9421]
[1729490808484,7.3415,170.03,169.92,4.4]
[1729490808485,4.4,170.03,169.92,4.4]
[1729490808683,4.4,170.03,169.93,1.47204741]
[1729490808881,2.9418,170.01,169.96,2.9425]
[1729490809484,2.9419,170.0,169.95,2.9427]
[1729490809880,4.4,170.03,169.95,2.9427]
[1729490810077,2.9418,170.01,169.95,2.9427]
[1729490810387,4.4,170.03,169.94,2.9429]
[1729490811681,17.66,170.02,169.9,4.4]
[1729490812285,17.66,170.02,169.92,2.9432]
[1729490812478,17.66,170.02,169.93,1.47235201]
[1729490812676,2.9423,169.98,169.92,2.9432]
[1729490812878,4.4,169.97,169.93,1.47234192]
[1729490813083,4.4,169.97,169.92,2.9432]
[1729490813280,4.4,169.97,169.93,1.47234241]
[1729490813490,4.4,169.97,169.92,2.9432]
[1729490813785,4.4,169.97,169.93,1.47235085]
[1729490813983,4.4,169.97,169.92,2.9432]
[1729490814183,4.4,169.97,169.93,1.47235085]
[1729490814387,4.4,169.97,169.92,2.9432]
[1729490814581,7.3424,169.97,169.93,1.47235085]
[1729490814782,7.3424,169.97,169.92,2.9432]
[1729490814989,2.9427,169.96,169.93,1.47234752]
[1729490815289,2.9427,169.96,169.91,2.9434]
[1729490815486,2.9427,169.96,169.92,1.47234947]
[1729490815682,2.9427,169.96,169.91,2.9434]
[1729490815881,2.9427,169.96,169.92,1.47235086]
[1729490816088,2.9427,169.96,169.93,1.47235086]
[1729490816281,2.9427,169.96,169.91,2.9434]
[1729490816477,2.9426,169.96,169.92,1.47235086]
[1729490816682,2.9426,169.96,169.93,1.47235086]
[1729490816883,2.9426,169.96,169.91,2.9434]
[1729490817186,2.9426,169.96,169.92,1.47234053]
[1729490817388,2.9426,169.96,169.93,1.47234053]
[1729490817687,2.9426,169.96,169.91,2.9434]
[1729490817876,2.9426,169.96,169.92,1.47234925]
[1729490818082,2.9426,169.96,169.93,1.47234925]
[1729490818277,2.9426,169.96,169.92,2.9431]
[1729490818479,4.4,169.97,169.93,1.47234687]
[1729490818682,4.4,169.97,169.92,2.9431]
[1729490818875,4.4,169.97,169.93,1.47234848]
[1729490819077,4.4,169.97,169.92,2.9431]
[1729490819278,4.4,169.97,169.93,1.47233161]
[1729490819477,4.4,169.97,169.88,6.83870497]
[1729490819680,4.4,169.97,169.89,1.47233477]
[1729490819885,4.4,169.97,169.9,1.47233477]
[1729490820190,4.4,169.97,169.91,1.47233477]
[1729490820489,4.4,169.97,169.92,1.47233477]
[1729490820690,4.4,169.97,169.93,4.41543477]
[1729490820889,4.4,169.97,169.93,2.9431]
[1729490821090,4.4,169.98,169.88,6.83870497]
[1729490821385,4.4,169.98,169.93,2.9429]
[1729490821585,4.4,169.98,169.88,6.83870497]
[1729490821787,4.4,169.98,169.89,1.47228767]
[1729490821985,4.4,169.98,169.9,1.47228767]
[1729490822179,4.4,169.98,169.88,6.83870497]
[1729490822379,4.4,169.98,169.94,2.9427]
[1729490824089,4.4,169.98,169.95,2.9426]
[1729490826992,7.3419,170.0,169.95,2.9426]
[1729490829094,2.9419,170.0,169.95,2.9426]
[1729490829394,7.3419,170.0,169.95,2.9426]
[1729490829989,7.3419,170.0,169.93,2.943]
[1729490830202,7.3419,170.0,169.94,1.47220281]
[1729490830489,7.3419,170.0,169.91,4.4]
[1729490830691,7.3419,170.0,169.92,1.47220391]
[1729490830891,7.3419,170.0,169.93,1.47220391]
[1729490831091,7.3419,170.0,169.94,1.47220391]
[1729490831289,7.3419,170.0,169.95,1.47220391]
[1729490831489,7.3419,170.0,169.91,4.4]
[1729490831694,7.3419,170.0,169.92,1.47214098]
[1729490831890,7.3419,170.0,169.95,2.9426]
[1729490833090,2.9416,170.02,169.97,2.9422]
[1729490833298,4.4,170.01,169.97,2.9422]
[1729490835592,2.9416,170.02,169.97,2.9422]
[1729490835890,2.9416,170.02,169.91,4.4]
[1729490835891,7.3416,170.02,169.98,2.9422]
[1729490836097,1.3048,170.04,169.91,4.4]
[1729490836288,4.4,170.02,169.92,1.47198092]
[1729490836493,4.4,170.02,169.98,2.9421]
[1729490836894,123.00398483,170.08,169.88,6.83870497]
[1729490836895,18.9077,170.15,169.99,5.87183929]
[1729490837093,17.66,170.13,170.03,2.9413]
[1729490837294,20.59137711,170.13,170.03,2.9413]
[1729490837894,20.59137711,170.13,169.99,4.4]
[1729490838100,20.59137711,170.13,170.02,2.9415]
[1729490838402,17.66,170.11,170.0,3.6]
[1729490838702,17.66,170.09,170.0,3.6]
[1729490838901,3.8623,170.08,170.0,3.6]
[1729490839110,2.941,170.06,170.01,2.9417]
[1729490839302,7.341,170.06,170.01,2.9417]
[1729490840206,7.341,170.06,170.0,3.6]
[1729490840403,7.341,170.06,170.0,6.5418]
[1729490841903,4.4,170.06,170.01,2.9416]
[1729490842103,4.4,170.06,170.0,3.6]
[1729490842406,4.4,170.06,170.02,2.9414]
[1729490843103,4.4,170.07,170.03,2.9413]
[1729490844107,6.8028,170.08,170.03,2.9413]
[1729490844405,8.2623,170.08,170.0,3.6]
[1729490844609,8.2623,170.08,170.0,8.0]
[1729490844798,8.2623,170.08,170.03,2.9412]
[1729490848103,8.2623,170.08,170.03,2.9413]
[1729490848410,8.2623,170.08,170.0,8.0]
[1729490850008,8.2623,170.08,170.04,2.9412]
[1729490850610,5.7263,170.08,170.04,2.9412]
[1729490850808,2.9401,170.11,170.0,8.0]
[1729490851117,7.3401,170.11,170.0,8.0]
[1729490851309,7.3401,170.11,170.05,2.9408]
[1729490851813,2.9402,170.1,170.05,2.9408]
[1729490852010,4.4,170.11,170.03,2.9412]
[1729490852313,4.4,170.11,170.01,4.4]
[1729490853914,2.9405,170.09,170.04,2.9411]
[1729490854510,4.4,170.11,170.01,4.4]
[1729490856014,2.9404,170.09,170.04,2.9412]
[1729490858419,2.9404,170.09,170.04,7.6412]
[1729490863923,2.91087617,170.13,170.04,4.7]
[1729490864127,2.9402,170.1,170.06,2.9408]
[1729490864825,2.94,170.11,170.06,2.9408]
[1729490865019,4.4,170.12,170.04,4.7]
[1729490865726,2.9401,170.11,170.04,4.7]
[1729490865920,4.4,170.12,170.04,4.7]
[1729490867827,7.3399,170.12,170.07,2.9406]
[1729490869129,9.95096035,170.14,170.08,2.9405]
[1729490869630,2.5853,170.14,170.05,4.4]
[1729490870127,122.94625431,170.22,170.05,4.4]
[1729490870327,8.3399,170.21,170.05,4.4]
[1729490870530,63.52,170.25,170.06,1.47088522]
[1729490870831,4.4,170.24,170.07,5.87088522]
[1729490871129,4.4,170.24,170.08,2.72618522]
[1729490871430,22.06,170.24,170.08,4.2373253]
[1729490871629,22.06,170.24,170.09,1.47062544]
[1729490871833,2.9387,170.19,170.13,2.9395]
[1729490872028,4.4,170.2,170.11,4.4]
[1729490872426,4.4,170.2,170.14,2.9393]
[1729490874826,4.4,170.2,170.11,4.4]
[1729490875030,4.4,170.22,170.11,4.4]
[1729490875241,63.52,170.25,170.11,4.4]
[1729490875532,4.4,170.23,170.14,2.9393]
[1729490875726,4.4,170.23,170.15,4.4]
[1729490876125,4.4,170.23,170.17,2.9388]
[1729490876324,4.4,170.23,170.15,4.4]
[1729490877531,2.9381,170.22,170.16,2.939]
[1729490877923,2.9381,170.22,170.15,4.4]
[1729490878128,2.9381,170.22,170.17,2.9389]
[1729490878832,2.9381,170.22,170.17,7.3489]
[1729490880436,4.4,170.23,170.17,7.3489]
[1729490880437,7.338,170.23,170.18,2.9387]
[1729490880633,4.4,170.23,170.17,4.41]
[1729490881032,4.38,170.22,170.17,4.41]
[1729490881234,3.7956,170.21,170.17,4.41]
[1729490881436,2.9384,170.2,170.17,4.41]
[1729490881930,3.7956,170.21,170.17,4.41]
[1729490882135,2.9386,170.19,170.17,4.41]
[1729490883338,3.7956,170.21,170.17,4.41]
[1729490884044,2.9387,170.19,170.17,4.41]
[1729490884339,1.259,170.21,170.17,4.41]
[1729490884540,4.38,170.18,170.17,4.41]
[1729490885641,1.259,170.21,170.17,8.22]
[1729490885840,4.38,170.2,170.17,8.22]
[1729490886840,7.3184,170.2,170.17,8.22]
[1729490887539,4.38,170.2,170.17,8.22]
[1729490887730,7.3186,170.2,170.17,8.22]
[1729490888237,4.38,170.2,170.17,8.22]
[1729490888440,2.9386,170.19,170.17,8.22]
[1729490892548,4.38,170.2,170.17,8.22]
[1729490892746,2.9388,170.18,170.17,8.22]
[1729490893043,2.9388,170.18,170.17,6.1924]
[1729490893238,2.9388,170.18,170.17,4.1648]
[1729490893437,2.9388,170.18,170.12,2.9398]
[1729490893438,2.9392,170.16,170.12,2.9398]
[1729490893635,4.38,170.18,170.12,2.9398]
[1729490893841,4.38,170.18,170.09,1.2553]
[1729490894038,2.89227785,170.17,170.08,1.2553]
[1729490894239,4.24167785,170.17,170.08,1.2553]
[1729490895145,2.9395,170.14,170.1,2.94]
[1729490895346,4.38,170.13,170.09,6.01]
[1729490895946,4.38,170.13,170.09,8.9502]
[1729490897348,2.9395,170.14,170.09,8.9502]
[1729490897647,4.38,170.13,170.09,8.9502]
[1729490898950,2.9395,170.14,170.09,6.01]
[1729490899247,4.38,170.13,170.09,6.01]
[1729490899448,7.3197,170.13,170.09,6.01]
[1729490900450,4.4,170.12,170.09,6.01]
[1729490901951,4.24167785,170.17,170.09,6.01]
[1729490902151,2.9395,170.14,170.09,8.9502]
[1729490902450,4.38,170.13,170.09,6.01]
[1729490903346,7.3196,170.13,170.09,6.01]
[1729490905054,4.38,170.13,170.09,8.9503]
[1729490908449,2.9395,170.14,170.09,8.9503]
[1729490908654,4.38,170.13,170.09,8.9503]
[1729490908857,4.38,170.14,170.11,2.9398]
[1729490909051,2.9393,170.16,170.09,6.01]
[1729490909251,4.38,170.15,170.09,6.01]
[1729490909452,4.38,170.15,170.12,2.9398]
[1729490910958,1.259,170.21,170.12,2.9398]
[1729490911156,4.38,170.2,170.12,2.9398]
[1729490912357,2.9391,170.17,170.12,2.9398]
[1729490912553,4.38,170.2,170.09,6.01]
[1729490912554,4.38,170.16,170.09,6.01]
[1729490913054,2.9396,170.14,170.09,8.9502]
[1729490914160,2.9393,170.15,170.11,2.9399]
[1729490914463,2.9393,170.15,170.09,6.01]
[1729490915862,2.9393,170.15,170.09,8.9501]
[1729490916259,2.9393,170.15,170.09,6.01]
[1729490916657,2.9393,170.15,170.1,2.9401]
[1729490917157,4.38,170.14,170.1,2.9401]
[1729490918360,7.3193,170.15,170.1,2.9401]
[1729490919257,2.9385,170.2,170.14,2.9393]
[1729490919454,4.38,170.19,170.14,2.9393]
[1729490919964,4.38,170.19,170.09,6.01]
[1729490920159,7.3186,170.19,170.09,6.01]
[1729490921059,2.9384,170.2,170.09,6.01]
[1729490921261,4.38,170.19,170.15,2.9391]
[1729490923061,4.38,170.2,170.11,1.2917]
[1729490923272,4.38,170.2,170.16,2.939]
[1729490923464,4.38,170.2,170.12,4.38]
[1729490923665,4.38,170.21,170.12,4.38]
[1729490923860,4.38,170.21,170.13,1.2553]
[1729490924369,4.38,170.21,170.16,2.9391]
[1729490924570,2.9381,170.22,170.16,2.9391]
[1729490924758,7.3181,170.22,170.16,2.9391]
[1729490924957,7.3181,170.22,170.17,3.78]
[1729490925669,7.3181,170.22,170.17,6.7189]
[1729490926063,4.38,170.21,170.17,3.78]
[1729490926465,4.38,170.21,170.17,6.7189]
[1729490929770,4.38,170.23,170.18,2.9387]
[1729490930076,4.38,170.23,170.17,3.78]
[1729490930274,4.38,170.23,170.19,2.9385]
[1729490931868,2.9378,170.24,170.19,2.9385]
[1729490932074,4.38,170.25,170.2,2.9383]
[1729490933376,4.38,170.25,170.21,2.9382]
[1729490933679,2.9372,170.28,170.17,5.0158]
[1729490933877,2.9372,170.28,170.18,1.47001493]
[1729490934066,2.9372,170.28,170.17,5.0158]
[1729490934269,2.9372,170.27,170.18,1.47000471]
[1729490934473,2.9372,170.27,170.17,5.0158]
[1729490934974,2.9371,170.28,170.22,2.9379]
[1729490935573,7.3171,170.28,170.22,2.9379]
[1729490935876,4.38,170.28,170.17,5.0158]
[1729490936074,4.38,170.28,170.18,1.46994513]
[1729490936276,4.38,170.28,170.17,5.0158]
[1729490936480,7.3171,170.28,170.18,1.46994673]
[1729490936779,7.3171,170.28,170.19,0.72]
[1729490937877,7.3171,170.28,170.23,2.9379]
[1729490938078,4.38,170.28,170.23,2.9379]
[1729490938879,7.317,170.28,170.23,2.9379]
[1729490939081,2.937,170.28,170.23,2.9379]
[1729490939484,2.9371,170.28,170.23,2.9379]
[1729490940682,2.9371,170.28,170.23,7.3879]
[1729490941083,2.9371,170.28,170.23,4.45]
[1729490941277,2.9371,170.28,170.24,2.9377]
[1729490941680,7.3168,170.3,170.23,4.45]
[1729490941978,7.31260356,170.3,170.23,4.45]
[1729490942181,2.9375,170.26,170.23,4.45]
[1729490944782,2.937,170.28,170.23,4.45]
[1729490945088,7.31260356,170.3,170.23,4.45]
[1729490946194,2.9372,170.27,170.23,4.45]
[1729490946990,2.9372,170.27,170.23,7.3878]
[1729490949590,2.9377,170.25,170.23,4.45]
[1729490949793,4.38,170.28,170.23,4.45]
[1729490950096,1.3051,170.27,170.23,4.45]
[1729490950296,1.3051,170.27,170.23,7.3879]
[1729490950598,4.38,170.28,170.23,4.45]
[1729490951393,7.3172,170.28,170.24,2.9377]
[1729490952392,4.38,170.28,170.23,4.45]
[1729490952593,2.9377,170.25,170.23,4.45]
[1729490952795,1.2634,170.27,170.23,4.45]
[1729490952999,2.5343,170.27,170.23,4.45]
[1729490953400,2.9377,170.24,170.23,4.45]
[1729490956195,7.3177,170.24,170.23,4.45]
[1729490956402,7.3177,170.24,170.23,5.17]
[1729490958193,2.5343,170.27,170.23,5.17]
[1729490958499,4.38,170.27,170.23,5.17]
[1729490959101,2.9369,170.29,170.23,5.17]
[1729490959301,4.38,170.28,170.23,5.17]
[1729490959802,2.9369,170.29,170.25,2.9375]
[1729490961998,7.3168,170.3,170.25,2.9375]
[1729490962394,2.9368,170.3,170.25,2.9375]
[1729490962794,4.38,170.31,170.25,2.9375]
[1729490962994,2.9369,170.29,170.25,2.9375]
[1729490963203,4.38,170.31,170.23,5.17]
[1729490963505,4.38,170.31,170.26,2.9373]
[1729490964200,7.3167,170.31,170.26,2.9373]
[1729490964403,4.38,170.31,170.26,2.9373]
[1729490965002,2.9365,170.31,170.26,2.9373]
[1729490965304,4.38,170.32,170.26,2.9373]
[1729490966900,2.9367,170.3,170.26,2.9373]
[1729490967406,2.9367,170.3,170.24,1.2766]
[1729490967609,2.9367,170.3,170.25,2.9374]
[1729490967907,4.38,170.32,170.24,1.2766]
[1729490968206,2.9365,170.31,170.26,2.9373]
[1729490968907,2.9367,170.3,170.25,2.9375]
[1729490970504,2.9367,170.3,170.26,4.86]
[1729490970903,4.38,170.31,170.26,4.86]
[1729490971099,7.3165,170.31,170.26,7.7973]
[1729490971303,4.38,170.31,170.26,4.86]
[1729490971603,2.9368,170.3,170.26,4.86]
[1729490971804,4.38,170.31,170.26,4.86]
[1729490972510,2.9368,170.3,170.26,4.86]
[1729490974512,2.9369,170.29,170.26,4.86]
[1729490977111,2.9367,170.3,170.26,4.86]
[1729490979811,2.9369,170.29,170.26,4.86]
[1729490980008,4.38,170.31,170.26,4.86]
[1729490980507,4.38,170.31,170.26,7.7972]
[1729490981213,7.3166,170.31,170.26,7.7972]
[1729490981614,4.38,170.31,170.26,4.86]
[1729490981805,2.9367,170.3,170.26,4.86]
[1729490982808,7.3165,170.31,170.26,7.7974]
[1729490983009,4.38,170.31,170.26,4.86]
[1729490983218,1.3341,170.33,170.26,4.86]
[1729490983406,2.936,170.34,170.29,2.9368]
[1729490983611,7.316,170.34,170.29,2.9368]
[1729490983817,2.936,170.34,170.29,2.9368]
[1729490984219,4.38,170.35,170.26,4.38]
[1729490984514,7.3159,170.35,170.3,2.9366]
[1729490985310,7.3159,170.35,170.31,6.17]
[1729490989521,22.04,170.35,170.31,6.17]
[1729490989723,2.9363,170.32,170.31,6.17]
[1729490995830,2.9362,170.33,170.31,6.17]
[1729490997432,2.9362,170.33,170.29,2.9368]
[1729490997630,2.9362,170.33,170.32,0.71]
[1729490998425,22.04,170.35,170.26,2.9373]
[1729490998628,2.9368,170.3,170.26,2.9373]
[1729490999030,2.9368,170.3,170.26,7.9573]
[1729490999533,2.9369,170.29,170.26,7.9573]
[1729491000128,7.28542349,170.31,170.26,7.9573]
[1729491000332,7.28542349,170.31,170.26,7.9574]
[1729491000636,7.28542349,170.31,170.26,5.02]
[1729491000837,2.937,170.29,170.26,5.02]
[1729491007536,7.28542349,170.31,170.26,5.02]
[1729491007537,2.9367,170.3,170.26,5.02]
[1729491007733,4.38,170.31,170.26,5.02]
[1729491008340,2.9368,170.3,170.26,5.02]
[1729491009046,2.9369,170.29,170.26,5.02]
[1729491009455,4.38,170.31,170.26,5.02]
[1729491009850,7.3166,170.31,170.26,7.9572]
[1729491010045,7.3166,170.31,170.26,5.02]
[1729491010646,7.3166,170.31,170.27,2.9371]
[1729491010847,2.9366,170.31,170.27,2.9371]
[1729491012046,2.9088768,170.32,170.26,5.02]
[1729491012250,22.04,170.33,170.26,5.02]
[1729491012453,4.38,170.33,170.26,5.02]
[1729491013056,2.9365,170.31,170.27,2.9371]
[1729491015758,2.9364,170.32,170.28,2.9369]
[1729491016860,2.9364,170.32,170.29,3.65]
[1729491017252,2.9364,170.32,170.29,6.5868]
[1729491020357,84.05153849,170.41,170.29,3.65]
[1729491020666,4.38,170.38,170.3,1.277]
[1729491021258,2.9356,170.37,170.3,1.277]
[1729491022153,4.38,170.38,170.3,1.277]
[1729491022358,2.9356,170.36,170.32,2.9362]
[1729491031560,2.9356,170.36,170.32,6.7462]
[1729491031965,4.38,170.38,170.32,3.81]
[1729491032271,2.9359,170.35,170.32,3.81]
[1729491033172,4.38,170.38,170.32,3.81]
[1729491033173,2.9362,170.33,170.32,3.81]
[1729491037571,7.316,170.34,170.32,3.81]
[1729491037868,4.38,170.34,170.32,3.81]
[1729491038467,4.38,170.35,170.32,3.81]
[1729491039870,2.9362,170.33,170.32,3.81]
[1729491044278,2.9362,170.33,170.32,2.8321]
[1729491044479,11.79658528,170.33,170.32,2.8321]
[1729491044670,2.937,170.29,170.19,4.38]
[1729491044869,7.317,170.29,170.22,1.46973384]
[1729491045074,4.38,170.29,170.25,2.9375]
[1729491045271,2.937,170.28,170.25,2.9375]
[1729491046577,4.38,170.29,170.25,2.9375]
[1729491046779,7.3169,170.29,170.25,2.9375]
[1729491047179,7.3169,170.29,170.26,5.72]
[1729491052783,2.9371,170.28,170.26,5.72]
[1729491057389,4.38,170.29,170.26,5.72]
[1729491057586,2.9372,170.27,170.26,5.72]
[1729491058285,2.9372,170.27,170.23,2.9377]
[1729491059990,2.9372,170.27,170.23,6.3077]
[1729491060689,2.9374,170.26,170.23,6.3077]
[1729491061293,2.9374,170.26,170.23,3.37]
[1729491063693,2.9372,170.27,170.23,6.3079]
[1729491067583,2.9374,170.26,170.23,3.37]
[1729491068190,4.38,170.29,170.23,3.37]
[1729491069094,2.9377,170.24,170.23,3.37]
[1729491072302,7.2976,170.25,170.23,3.37]
[1729491078506,2.9376,170.25,170.23,3.37]
[1729491080812,2.9377,170.24,170.23,3.37]
[1729491084413,4.38,170.27,170.23,3.37]
[1729491084609,2.9376,170.25,170.23,3.37]
[1729491088816,2.9377,170.24,170.23,3.37]
[1729491094419,4.38,170.27,170.23,3.37]
[1729491094621,2.9374,170.26,170.23,3.37]
[1729491098722,2.9376,170.25,170.23,3.37]
[1729491103925,4.36,170.31,170.23,3.37]
[1729491104130,4.36,170.32,170.24,1.2253]
[1729491105528,2.9368,170.3,170.26,2.9372]
[1729491105925,2.9368,170.3,170.26,6.8772]
[1729491109534,2.9366,170.31,170.27,2.9371]
[1729491109734,2.9366,170.31,170.26,3.94]
[1729491109923,4.36,170.33,170.26,3.94]
[1729491110325,4.36,170.33,170.27,1.46944423]
[1729491110634,4.36,170.33,170.26,3.94]
[1729491110635,7.2962,170.33,170.26,3.94]
[1729491110824,4.36,170.33,170.26,3.94]
[1729491111030,4.36,170.33,170.27,1.46944769]
[1729491111232,4.36,170.33,170.26,3.94]
[1729491111827,2.9366,170.31,170.27,2.9371]
[1729491120842,4.36,170.33,170.26,3.94]
[1729491121035,7.2963,170.33,170.28,2.9369]
[1729491121440,4.36,170.33,170.26,3.94]
[1729491121641,2.9365,170.31,170.27,2.9372]
[1729491123140,4.36,170.33,170.26,3.94]
[1729491123335,2.9368,170.3,170.26,6.8772]
[1729491123844,2.9367,170.31,170.27,2.9371]
[1729491124436,4.36,170.33,170.26,3.94]
[1729491124644,2.9364,170.32,170.28,2.937]
[1729491128251,4.36,170.33,170.25,5.50666375]
[1729491128555,2.9366,170.31,170.28,2.937]
[1729491130652,4.36,170.33,170.26,4.53]
[1729491130653,2.9369,170.29,170.26,7.4674]
[1729491130951,2.9369,170.29,170.26,4.53]
[1729491144665,2.9367,170.3,170.26,7.4673]
[1729491145962,2.9369,170.29,170.26,7.4673]
[1729491154262,4.36,170.33,170.26,4.53]
[1729491154263,2.9366,170.31,170.26,4.53]
[1729491154468,2.9366,170.31,170.27,2.9372]
[1729491156368,2.9366,170.31,170.28,5.69]
[1729491157071,2.9362,170.33,170.28,8.6269]
[1729491157276,2.9362,170.33,170.28,5.69]
[1729491158180,2.9362,170.33,170.29,2.9367]
[1729491159473,4.36,170.34,170.28,5.69]